[Event "Titled Tuesday Blitz March 14 Late 2023"]
[White "Postma, Dinant"]
[Black "Christiansen, Johan-Sebastian"]
[WhiteFideId "1018612"]
[BlackFideId "1512668"]
[WhiteElo "2516"]
[BlackElo "2517"]
[Result "0-1"]
[Round "02"]
[TimeControl "180+2"]
[Date "2023.03.14"]
[WhiteClock "0:00:02"]
[BlackClock "0:00:11"]

1. e4 {[%clk 0:03:00]}  e5 {[%clk 0:02:56]} 2. Nf3 {[%clk 0:03:00]}  Nc6 {[%clk 0:02:56]} 3. Bc4 {[%clk 0:03:00]}  Nf6 {[%clk 0:02:56]} 4. d4 {[%clk 0:02:54]}  exd4 {[%clk 0:02:56]} 5. O-O {[%clk 0:02:54]}  Nxe4 {[%clk 0:02:55]} 6. Re1 {[%clk 0:02:55]}  d5 {[%clk 0:02:56]} 7. Bxd5 {[%clk 0:02:55]}  Qxd5 {[%clk 0:02:56]} 8. Nc3 {[%clk 0:02:56]}  Qd7 {[%clk 0:02:55]} 9. Rxe4+ {[%clk 0:02:47]}  Be7 {[%clk 0:02:54]} 10. Nxd4 {[%clk 0:02:47]}  f5 {[%clk 0:02:36]} 11. Rf4 {[%clk 0:02:03]}  O-O {[%clk 0:02:34]} 12. Nxc6 {[%clk 0:01:59]}  Qxc6 {[%clk 0:02:34]} 13. Qd5+ {[%clk 0:01:52]}  Qxd5 {[%clk 0:02:33]} 14. Nxd5 {[%clk 0:01:53]}  Bd6 {[%clk 0:02:33]} 15. Rd4 {[%clk 0:01:49]}  Be6 {[%clk 0:02:33]} 16. Bf4 {[%clk 0:01:42]}  Bc5 {[%clk 0:01:56]} 17. Rc4 {[%clk 0:01:19]}  Bxd5 {[%clk 0:01:53]} 18. Rxc5 {[%clk 0:01:19]}  c6 {[%clk 0:01:54]} 19. f3 {[%clk 0:01:12]}  Rfe8 {[%clk 0:01:49]} 20. Kf2 {[%clk 0:01:01]}  Kf7 {[%clk 0:01:14]} 21. h4 {[%clk 0:00:44]}  h6 {[%clk 0:01:12]} 22. b3 {[%clk 0:00:43]}  Kf6 {[%clk 0:01:10]} 23. Bc1 {[%clk 0:00:31]}  g5 {[%clk 0:00:51]} 24. Bb2+ {[%clk 0:00:27]}  Kg6 {[%clk 0:00:52]} 25. Rh1 {[%clk 0:00:20]}  Re7 {[%clk 0:00:42]} 26. hxg5 {[%clk 0:00:09]}  hxg5 {[%clk 0:00:42]} 27. Rh8 {[%clk 0:00:09]}  Rxh8 {[%clk 0:00:38]} 28. Bxh8 {[%clk 0:00:10]}  Rh7 {[%clk 0:00:36]} 29. Bd4 {[%clk 0:00:05]}  b6 {[%clk 0:00:17]} 30. Rc3 {[%clk 0:00:04]}  c5 {[%clk 0:00:16]} 31. Be5 {[%clk 0:00:04]}  Rh1 {[%clk 0:00:15]} 32. Rd3 {[%clk 0:00:04]}  Be6 {[%clk 0:00:12]} 33. Rd7 {[%clk 0:00:02]}  Bxd7 {[%clk 0:00:11]} 0-1


[Site "https://www.chess.com"]

[Event "Titled Tuesday Blitz March 14 Late 2023"]
[White "Tanenbaum, Zachary"]
[Black "Kielinkei"]
[WhiteFideId "2060850"]
[WhiteElo "2175"]
[BlackElo "2437"]
[Result "1-0"]
[Round "02"]
[TimeControl "180+2"]
[Date "2023.03.14"]
[WhiteClock "0:00:10"]
[BlackClock "0:00:01"]

1. e4 {[%clk 0:02:53]}  c5 {[%clk 0:02:59]} 2. Nf3 {[%clk 0:02:53]}  e6 {[%clk 0:02:59]} 3. d4 {[%clk 0:02:53]}  cxd4 {[%clk 0:03:00]} 4. Nxd4 {[%clk 0:02:53]}  Nc6 {[%clk 0:02:59]} 5. Nc3 {[%clk 0:02:53]}  Bc5 {[%clk 0:02:57]} 6. Nb3 {[%clk 0:02:48]}  Bb4 {[%clk 0:02:56]} 7. Bd3 {[%clk 0:02:48]}  Nf6 {[%clk 0:02:45]} 8. Bd2 {[%clk 0:02:45]}  d5 {[%clk 0:02:39]} 9. exd5 {[%clk 0:02:43]}  Nxd5 {[%clk 0:02:40]} 10. Nxd5 {[%clk 0:02:37]}  Bxd2+ {[%clk 0:02:40]} 11. Qxd2 {[%clk 0:02:36]}  Qxd5 {[%clk 0:02:41]} 12. O-O {[%clk 0:02:34]}  O-O {[%clk 0:02:41]} 13. Rad1 {[%clk 0:02:12]}  Ne5 {[%clk 0:02:28]} 14. Qf4 {[%clk 0:01:57]}  Nxd3 {[%clk 0:02:20]} 15. Rxd3 {[%clk 0:01:58]}  Qf5 {[%clk 0:02:11]} 16. Qxf5 {[%clk 0:01:57]}  exf5 {[%clk 0:02:10]} 17. Rfd1 {[%clk 0:01:03]}  Be6 {[%clk 0:02:03]} 18. Nd4 {[%clk 0:00:57]}  Rac8 {[%clk 0:01:29]} 19. b3 {[%clk 0:00:53]}  Rfd8 {[%clk 0:01:16]} 20. c4 {[%clk 0:00:48]}  Rd6 {[%clk 0:00:40]} 21. Kf1 {[%clk 0:00:36]}  Rcd8 {[%clk 0:00:38]} 22. Ke2 {[%clk 0:00:37]}  Bc8 {[%clk 0:00:36]} 23. Nb5 {[%clk 0:00:35]}  Re8+ {[%clk 0:00:14]} 24. Kf1 {[%clk 0:00:26]}  Rxd3 {[%clk 0:00:14]} 25. Rxd3 {[%clk 0:00:26]}  a6 {[%clk 0:00:12]} 26. Nd6 {[%clk 0:00:25]}  Rd8 {[%clk 0:00:12]} 27. Ke2 {[%clk 0:00:24]}  Kf8 {[%clk 0:00:08]} 28. Nxc8 {[%clk 0:00:20]}  Rxc8 {[%clk 0:00:09]} 29. Rd7 {[%clk 0:00:20]}  b5 {[%clk 0:00:10]} 30. Kd3 {[%clk 0:00:18]}  bxc4+ {[%clk 0:00:09]} 31. bxc4 {[%clk 0:00:19]}  Ke8 {[%clk 0:00:10]} 32. Rd6 {[%clk 0:00:18]}  Rb8 {[%clk 0:00:05]} 33. Kc3 {[%clk 0:00:16]}  a5 {[%clk 0:00:03]} 34. Rd5 {[%clk 0:00:17]}  a4 {[%clk 0:00:03]} 35. Re5+ {[%clk 0:00:15]}  Kf8 {[%clk 0:00:02]} 36. Rxf5 {[%clk 0:00:16]}  a3 {[%clk 0:00:02]} 37. Rb5 {[%clk 0:00:15]}  Re8 {[%clk 0:00:02]} 38. c5 {[%clk 0:00:12]}  Re2 {[%clk 0:00:02]} 39. c6 {[%clk 0:00:12]}  Re1 {[%clk 0:00:01]} 40. Kd2 {[%clk 0:00:11]}  Ra1 {[%clk 0:00:01]} 41. c7 {[%clk 0:00:10]} 1-0


[Site "https://www.chess.com"]

[Event "Titled Tuesday Blitz March 14 Late 2023"]
[White "Averjanov, Alexey"]
[Black "DeyanKostov"]
[WhiteFideId "14109867"]
[WhiteElo "2717"]
[BlackElo "2322"]
[Result "1-0"]
[Round "02"]
[TimeControl "180+2"]
[Date "2023.03.14"]
[WhiteClock "0:00:49"]
[BlackClock "0:00:35"]

1. d4 {[%clk 0:03:00]}  d5 {[%clk 0:02:59]} 2. c4 {[%clk 0:02:59]}  dxc4 {[%clk 0:03:00]} 3. Nf3 {[%clk 0:02:58]}  Nf6 {[%clk 0:03:00]} 4. e3 {[%clk 0:02:58]}  e6 {[%clk 0:03:01]} 5. Bxc4 {[%clk 0:02:57]}  a6 {[%clk 0:03:01]} 6. O-O {[%clk 0:02:57]}  c5 {[%clk 0:03:01]} 7. Qe2 {[%clk 0:02:53]}  Nc6 {[%clk 0:03:00]} 8. Rd1 {[%clk 0:02:52]}  cxd4 {[%clk 0:03:00]} 9. Nxd4 {[%clk 0:02:47]}  Nxd4 {[%clk 0:02:59]} 10. exd4 {[%clk 0:02:48]}  Be7 {[%clk 0:02:59]} 11. Nc3 {[%clk 0:02:47]}  O-O {[%clk 0:02:55]} 12. d5 {[%clk 0:02:47]}  exd5 {[%clk 0:02:53]} 13. Nxd5 {[%clk 0:02:48]}  Nxd5 {[%clk 0:02:53]} 14. Bxd5 {[%clk 0:02:49]}  Qc7 {[%clk 0:02:50]} 15. Qe4 {[%clk 0:02:29]}  Bf6 {[%clk 0:02:44]} 16. Bf4 {[%clk 0:02:26]}  Qb6 {[%clk 0:02:41]} 17. Be3 {[%clk 0:02:10]}  Qxb2 {[%clk 0:02:33]} 18. Rac1 {[%clk 0:02:01]}  Qe5 {[%clk 0:02:32]} 19. Qxe5 {[%clk 0:01:48]}  Bxe5 {[%clk 0:02:32]} 20. Bc5 {[%clk 0:01:48]}  Re8 {[%clk 0:02:27]} 21. Re1 {[%clk 0:01:48]}  Bf5 {[%clk 0:02:10]} 22. Bxb7 {[%clk 0:01:46]}  Rab8 {[%clk 0:02:07]} 23. Bxa6 {[%clk 0:01:44]}  Bb2 {[%clk 0:02:04]} 24. Rxe8+ {[%clk 0:01:41]}  Rxe8 {[%clk 0:02:05]} 25. Rd1 {[%clk 0:01:36]}  h5 {[%clk 0:01:58]} 26. Be3 {[%clk 0:01:30]}  Ra8 {[%clk 0:01:48]} 27. Bc4 {[%clk 0:01:28]}  Be6 {[%clk 0:01:48]} 28. Bb3 {[%clk 0:01:23]}  Bxb3 {[%clk 0:01:33]} 29. axb3 {[%clk 0:01:24]}  Ra3 {[%clk 0:01:32]} 30. Rb1 {[%clk 0:01:21]}  Be5 {[%clk 0:01:09]} 31. b4 {[%clk 0:01:19]}  Ra8 {[%clk 0:01:06]} 32. b5 {[%clk 0:01:16]}  Kf8 {[%clk 0:01:07]} 33. b6 {[%clk 0:01:14]}  Ke7 {[%clk 0:01:02]} 34. b7 {[%clk 0:01:11]}  Rd8 {[%clk 0:01:02]} 35. Bc5+ {[%clk 0:01:05]}  Ke6 {[%clk 0:00:44]} 36. Re1 {[%clk 0:01:02]}  Kf6 {[%clk 0:00:39]} 37. f4 {[%clk 0:00:52]}  Bxf4 {[%clk 0:00:35]} 38. Be7+ {[%clk 0:00:49]} 1-0


[Site "https://www.chess.com"]

[Event "Titled Tuesday Blitz March 14 Late 2023"]
[White "Cardoso Cardoso, Jose Gabriel"]
[Black "Comas Fabrego, Lluis"]
[WhiteFideId "4430492"]
[BlackFideId "2200325"]
[WhiteElo "2496"]
[BlackElo "2523"]
[Result "1-0"]
[Round "02"]
[TimeControl "180+2"]
[Date "2023.03.14"]
[WhiteClock "0:01:20"]
[BlackClock "0:01:19"]

1. d4 {[%clk 0:03:00]}  Nf6 {[%clk 0:02:59]} 2. c4 {[%clk 0:03:01]}  g6 {[%clk 0:02:59]} 3. Nc3 {[%clk 0:03:01]}  d5 {[%clk 0:02:59]} 4. cxd5 {[%clk 0:03:00]}  Nxd5 {[%clk 0:03:00]} 5. e4 {[%clk 0:03:01]}  Nxc3 {[%clk 0:02:59]} 6. bxc3 {[%clk 0:03:02]}  Bg7 {[%clk 0:02:59]} 7. Bc4 {[%clk 0:03:03]}  O-O {[%clk 0:02:55]} 8. Ne2 {[%clk 0:03:01]}  c5 {[%clk 0:02:55]} 9. Be3 {[%clk 0:03:00]}  Nc6 {[%clk 0:02:54]} 10. h4 {[%clk 0:03:00]}  Qa5 {[%clk 0:02:50]} 11. O-O {[%clk 0:03:00]}  cxd4 {[%clk 0:02:35]} 12. cxd4 {[%clk 0:03:01]}  Qa3 {[%clk 0:02:35]} 13. Qb3 {[%clk 0:02:22]}  Qxb3 {[%clk 0:02:33]} 14. axb3 {[%clk 0:02:14]}  e6 {[%clk 0:02:14]} 15. Rfd1 {[%clk 0:02:12]}  Rd8 {[%clk 0:02:13]} 16. f3 {[%clk 0:01:59]}  b6 {[%clk 0:02:13]} 17. Bb5 {[%clk 0:01:41]}  Bb7 {[%clk 0:02:04]} 18. Rac1 {[%clk 0:01:39]}  Rac8 {[%clk 0:02:03]} 19. d5 {[%clk 0:01:35]}  exd5 {[%clk 0:01:58]} 20. exd5 {[%clk 0:01:36]}  Nb4 {[%clk 0:01:47]} 21. Rxc8 {[%clk 0:01:31]}  Rxc8 {[%clk 0:01:25]} 22. d6 {[%clk 0:01:31]}  Rd8 {[%clk 0:01:24]} 23. d7 {[%clk 0:01:21]}  a6 {[%clk 0:01:23]} 24. Bxb6 {[%clk 0:01:20]}  axb5 {[%clk 0:01:19]} 25. Bxd8 {[%clk 0:01:20]} 1-0


[Site "https://www.chess.com"]

[Event "Titled Tuesday Blitz March 14 Late 2023"]
[White "Defend, Balint"]
[Black "Dahl, Trygve"]
[WhiteFideId "17004853"]
[BlackFideId "1513427"]
[WhiteElo "2534"]
[BlackElo "2125"]
[Result "0-1"]
[Round "02"]
[TimeControl "180+2"]
[Date "2023.03.14"]
[WhiteClock "0:01:58"]
[BlackClock "0:02:01"]

1. e4 {[%clk 0:03:00]}  e5 {[%clk 0:02:59]} 2. Nf3 {[%clk 0:02:59]}  Nf6 {[%clk 0:02:58]} 3. Nxe5 {[%clk 0:02:59]}  d6 {[%clk 0:02:58]} 4. Nf3 {[%clk 0:02:59]}  Nxe4 {[%clk 0:02:59]} 5. Nc3 {[%clk 0:02:58]}  Nxc3 {[%clk 0:02:58]} 6. dxc3 {[%clk 0:02:59]}  Be7 {[%clk 0:02:58]} 7. Nd4 {[%clk 0:02:52]}  O-O {[%clk 0:02:55]} 8. Be3 {[%clk 0:02:52]}  Re8 {[%clk 0:02:43]} 9. h4 {[%clk 0:02:46]}  Nd7 {[%clk 0:02:42]} 10. Bc4 {[%clk 0:02:33]}  Ne5 {[%clk 0:02:33]} 11. Bd5 {[%clk 0:02:30]}  c6 {[%clk 0:02:29]} 12. Bb3 {[%clk 0:02:24]}  d5 {[%clk 0:02:22]} 13. h5 {[%clk 0:02:14]}  Ng4 {[%clk 0:02:19]} 14. Qf3 {[%clk 0:02:08]}  Bg5 {[%clk 0:02:11]} 15. O-O {[%clk 0:02:05]}  Rxe3 {[%clk 0:02:02]} 16. fxe3 {[%clk 0:02:06]}  Bxe3+ {[%clk 0:02:02]} 17. Kh1 {[%clk 0:02:02]}  Qh4+ {[%clk 0:02:02]} 18. Qh3 {[%clk 0:02:02]}  Nf2+ {[%clk 0:02:03]} 19. Rxf2 {[%clk 0:02:00]}  Bxh3 {[%clk 0:02:03]} 20. Nf3 {[%clk 0:01:58]}  Qxf2 {[%clk 0:02:01]} 0-1


[Site "https://www.chess.com"]

[Event "Titled Tuesday Blitz March 14 Late 2023"]
[White "Gharamian, Tigran"]
[Black "Gasparyan, David"]
[WhiteFideId "13301527"]
[BlackFideId "13311980"]
[WhiteElo "2632"]
[BlackElo "2514"]
[Result "0-1"]
[Round "02"]
[TimeControl "180+2"]
[Date "2023.03.14"]
[WhiteClock "0:00:12"]
[BlackClock "0:00:20"]

1. d4 {[%clk 0:02:59]}  Nf6 {[%clk 0:02:59]} 2. Nf3 {[%clk 0:02:58]}  e6 {[%clk 0:02:59]} 3. c4 {[%clk 0:02:58]}  d5 {[%clk 0:02:59]} 4. Nc3 {[%clk 0:02:58]}  c6 {[%clk 0:02:59]} 5. e3 {[%clk 0:02:58]}  Bd6 {[%clk 0:02:59]} 6. Bd3 {[%clk 0:02:59]}  O-O {[%clk 0:03:00]} 7. O-O {[%clk 0:02:59]}  dxc4 {[%clk 0:03:00]} 8. Bxc4 {[%clk 0:02:59]}  Nbd7 {[%clk 0:03:00]} 9. Qc2 {[%clk 0:02:52]}  a6 {[%clk 0:02:56]} 10. Rd1 {[%clk 0:02:44]}  Qc7 {[%clk 0:02:52]} 11. h3 {[%clk 0:02:32]}  b5 {[%clk 0:02:47]} 12. Bd3 {[%clk 0:02:32]}  c5 {[%clk 0:02:47]} 13. Ne4 {[%clk 0:02:30]}  c4 {[%clk 0:02:39]} 14. Nxd6 {[%clk 0:02:05]}  Qxd6 {[%clk 0:02:40]} 15. Be4 {[%clk 0:01:51]}  Nxe4 {[%clk 0:02:40]} 16. Qxe4 {[%clk 0:01:52]}  Rb8 {[%clk 0:02:35]} 17. Qh4 {[%clk 0:01:43]}  Bb7 {[%clk 0:02:32]} 18. e4 {[%clk 0:01:43]}  e5 {[%clk 0:02:26]} 19. Be3 {[%clk 0:01:35]}  Qg6 {[%clk 0:02:06]} 20. dxe5 {[%clk 0:01:28]}  Bxe4 {[%clk 0:02:06]} 21. Ng5 {[%clk 0:01:22]}  Bf5 {[%clk 0:01:50]} 22. Rd6 {[%clk 0:01:21]}  f6 {[%clk 0:01:49]} 23. Nf3 {[%clk 0:00:49]}  Rbe8 {[%clk 0:01:34]} 24. e6 {[%clk 0:00:36]}  Bxe6 {[%clk 0:01:30]} 25. Nd4 {[%clk 0:00:37]}  Bf5 {[%clk 0:01:17]} 26. g4 {[%clk 0:00:37]}  Ne5 {[%clk 0:01:17]} 27. Kf1 {[%clk 0:00:32]}  Bd3+ {[%clk 0:01:17]} 28. Kg2 {[%clk 0:00:28]}  Qe4+ {[%clk 0:01:16]} 29. Kh2 {[%clk 0:00:24]}  Nf7 {[%clk 0:00:32]} 30. Rd7 {[%clk 0:00:19]}  Ng5 {[%clk 0:00:27]} 31. Qg3 {[%clk 0:00:18]}  g6 {[%clk 0:00:19]} 32. h4 {[%clk 0:00:17]}  Ne6 {[%clk 0:00:19]} 33. Nxe6 {[%clk 0:00:15]}  Rxe6 {[%clk 0:00:19]} 34. h5 {[%clk 0:00:14]}  f5 {[%clk 0:00:19]} 35. hxg6 {[%clk 0:00:13]}  hxg6 {[%clk 0:00:19]} 36. gxf5 {[%clk 0:00:13]}  Rxf5 {[%clk 0:00:20]} 37. Rg1 {[%clk 0:00:11]}  Rh5+ {[%clk 0:00:20]} 38. Qh3 {[%clk 0:00:11]}  Rxh3+ {[%clk 0:00:20]} 39. Kxh3 {[%clk 0:00:12]}  Qf5+ {[%clk 0:00:20]} 0-1


[Site "https://www.chess.com"]

[Event "Titled Tuesday Blitz March 14 Late 2023"]
[White "Sonnenschein, Philipp"]
[Black "Bove, Alessandro"]
[WhiteFideId "16250877"]
[BlackFideId "814121"]
[WhiteElo "2224"]
[BlackElo "2387"]
[Result "1-0"]
[Round "02"]
[TimeControl "180+2"]
[Date "2023.03.14"]
[WhiteClock "0:01:01"]
[BlackClock "0:00:39"]

1. e4 {[%clk 0:03:00]}  c5 {[%clk 0:03:00]} 2. Nf3 {[%clk 0:03:01]}  d6 {[%clk 0:03:00]} 3. Bb5+ {[%clk 0:03:01]}  Bd7 {[%clk 0:03:00]} 4. Bxd7+ {[%clk 0:03:01]}  Qxd7 {[%clk 0:03:00]} 5. O-O {[%clk 0:03:00]}  Nc6 {[%clk 0:03:00]} 6. c4 {[%clk 0:03:00]}  g6 {[%clk 0:03:01]} 7. d4 {[%clk 0:02:59]}  cxd4 {[%clk 0:03:01]} 8. Nxd4 {[%clk 0:03:00]}  Bg7 {[%clk 0:03:01]} 9. Be3 {[%clk 0:02:59]}  Rc8 {[%clk 0:03:01]} 10. b3 {[%clk 0:02:57]}  a6 {[%clk 0:03:00]} 11. Qd3 {[%clk 0:02:52]}  Nf6 {[%clk 0:03:00]} 12. Nc3 {[%clk 0:02:52]}  Ng4 {[%clk 0:03:00]} 13. Nxc6 {[%clk 0:02:21]}  Nxe3 {[%clk 0:02:53]} 14. Na7 {[%clk 0:02:18]}  Nxf1 {[%clk 0:02:25]} 15. Nxc8 {[%clk 0:02:17]}  Qxc8 {[%clk 0:02:19]} 16. Rxf1 {[%clk 0:02:14]}  O-O {[%clk 0:02:20]} 17. Nd5 {[%clk 0:02:11]}  Qe6 {[%clk 0:02:15]} 18. f4 {[%clk 0:02:04]}  Rc8 {[%clk 0:02:09]} 19. f5 {[%clk 0:01:59]}  Qe5 {[%clk 0:02:07]} 20. Qf3 {[%clk 0:01:35]}  gxf5 {[%clk 0:02:03]} 21. Qxf5 {[%clk 0:01:33]}  Qxf5 {[%clk 0:01:34]} 22. Nxe7+ {[%clk 0:01:33]}  Kf8 {[%clk 0:01:33]} 23. Nxf5 {[%clk 0:01:33]}  Be5 {[%clk 0:01:33]} 24. Rd1 {[%clk 0:01:27]}  Rc6 {[%clk 0:01:33]} 25. h3 {[%clk 0:01:26]}  Ke8 {[%clk 0:01:33]} 26. Kf2 {[%clk 0:01:26]}  Kd7 {[%clk 0:01:33]} 27. Kf3 {[%clk 0:01:26]}  Ke6 {[%clk 0:01:33]} 28. Kg4 {[%clk 0:01:24]}  b5 {[%clk 0:01:33]} 29. cxb5 {[%clk 0:01:24]}  axb5 {[%clk 0:01:34]} 30. Rd2 {[%clk 0:01:24]}  Rc1 {[%clk 0:01:19]} 31. Kf3 {[%clk 0:01:22]}  Rf1+ {[%clk 0:01:19]} 32. Ke3 {[%clk 0:01:21]}  Bf4+ {[%clk 0:01:18]} 33. Ke2 {[%clk 0:01:21]}  Rc1 {[%clk 0:00:44]} 34. Rd5 {[%clk 0:01:17]}  Rc2+ {[%clk 0:00:43]} 35. Kf3 {[%clk 0:01:17]}  Be5 {[%clk 0:00:43]} 36. Rxb5 {[%clk 0:01:16]}  Rxa2 {[%clk 0:00:43]} 37. Rb7 {[%clk 0:01:15]}  Rb2 {[%clk 0:00:42]} 38. h4 {[%clk 0:01:09]}  Rc2 {[%clk 0:00:41]} 39. Ne3 {[%clk 0:01:05]}  Rc3 {[%clk 0:00:41]} 40. Ke2 {[%clk 0:01:05]}  Rc1 {[%clk 0:00:40]} 41. Nd5 {[%clk 0:01:04]}  Rc2+ {[%clk 0:00:40]} 42. Kd1 {[%clk 0:01:02]}  Rxg2 {[%clk 0:00:39]} 43. Re7# {[%clk 0:01:01]} 1-0


[Site "https://www.chess.com"]

[Event "Titled Tuesday Blitz March 14 Late 2023"]
[White "ArchibaldCerveza29"]
[Black "Abrosimov, Vladimir"]
[BlackFideId "4166892"]
[WhiteElo "2503"]
[BlackElo "2336"]
[Result "1-0"]
[Round "02"]
[TimeControl "180+2"]
[Date "2023.03.14"]
[WhiteClock "0:01:25"]
[BlackClock "0:00:14"]

1. e4 {[%clk 0:03:00]}  c5 {[%clk 0:03:00]} 2. Nf3 {[%clk 0:02:59]}  d6 {[%clk 0:02:56]} 3. d4 {[%clk 0:02:56]}  cxd4 {[%clk 0:02:56]} 4. Nxd4 {[%clk 0:02:57]}  Nf6 {[%clk 0:02:57]} 5. Nc3 {[%clk 0:02:55]}  a6 {[%clk 0:02:57]} 6. Rg1 {[%clk 0:02:54]}  e5 {[%clk 0:02:55]} 7. Nb3 {[%clk 0:02:53]}  Be6 {[%clk 0:02:55]} 8. g4 {[%clk 0:02:53]}  Bxg4 {[%clk 0:02:54]} 9. Rxg4 {[%clk 0:02:53]}  Nxg4 {[%clk 0:02:54]} 10. Qxg4 {[%clk 0:02:53]}  Qd7 {[%clk 0:02:50]} 11. Qxd7+ {[%clk 0:02:52]}  Nxd7 {[%clk 0:02:51]} 12. Be3 {[%clk 0:02:48]}  Nf6 {[%clk 0:02:50]} 13. f3 {[%clk 0:02:48]}  Be7 {[%clk 0:02:49]} 14. O-O-O {[%clk 0:02:47]}  O-O {[%clk 0:02:47]} 15. a4 {[%clk 0:02:46]}  Rfd8 {[%clk 0:02:45]} 16. Nd5 {[%clk 0:02:44]}  Nxd5 {[%clk 0:02:45]} 17. Rxd5 {[%clk 0:02:45]}  h6 {[%clk 0:02:42]} 18. Bb6 {[%clk 0:02:44]}  Rdc8 {[%clk 0:02:38]} 19. Na5 {[%clk 0:02:40]}  Rab8 {[%clk 0:02:23]} 20. Bh3 {[%clk 0:02:39]}  Rf8 {[%clk 0:02:16]} 21. c3 {[%clk 0:02:27]}  g5 {[%clk 0:02:13]} 22. Bg4 {[%clk 0:02:19]}  Kg7 {[%clk 0:02:13]} 23. Nc4 {[%clk 0:02:10]}  Kg6 {[%clk 0:01:49]} 24. Bc7 {[%clk 0:02:03]}  Rbe8 {[%clk 0:01:36]} 25. Bd7 {[%clk 0:02:02]}  Ra8 {[%clk 0:01:24]} 26. Nb6 {[%clk 0:02:02]}  Ra7 {[%clk 0:01:20]} 27. Nc8 {[%clk 0:01:46]}  Rxc8 {[%clk 0:00:54]} 28. Bxc8 {[%clk 0:01:47]}  b5 {[%clk 0:00:47]} 29. Bxd6 {[%clk 0:01:41]}  f6 {[%clk 0:00:29]} 30. Bxe7 {[%clk 0:01:35]}  Rxe7 {[%clk 0:00:30]} 31. Bf5+ {[%clk 0:01:35]}  Kh5 {[%clk 0:00:29]} 32. axb5 {[%clk 0:01:36]}  axb5 {[%clk 0:00:28]} 33. Rxb5 {[%clk 0:01:34]}  Kh4 {[%clk 0:00:28]} 34. Rb6 {[%clk 0:01:29]}  Rf7 {[%clk 0:00:28]} 35. c4 {[%clk 0:01:28]}  h5 {[%clk 0:00:27]} 36. c5 {[%clk 0:01:23]}  g4 {[%clk 0:00:27]} 37. fxg4 {[%clk 0:01:23]}  hxg4 {[%clk 0:00:26]} 38. c6 {[%clk 0:01:23]}  Rc7 {[%clk 0:00:23]} 39. b4 {[%clk 0:01:23]}  g3 {[%clk 0:00:17]} 40. hxg3+ {[%clk 0:01:23]}  Kxg3 {[%clk 0:00:18]} 41. b5 {[%clk 0:01:23]}  Kf4 {[%clk 0:00:19]} 42. Rb7 {[%clk 0:01:23]}  Rxb7 {[%clk 0:00:15]} 43. cxb7 {[%clk 0:01:24]}  Ke3 {[%clk 0:00:16]} 44. b8=Q {[%clk 0:01:24]}  Kd4 {[%clk 0:00:16]} 45. Qf8 {[%clk 0:01:24]}  Kc4 {[%clk 0:00:17]} 46. Qxf6 {[%clk 0:01:25]}  Kb4 {[%clk 0:00:17]} 47. Qxe5 {[%clk 0:01:25]}  Ka5 {[%clk 0:00:17]} 48. b6+ {[%clk 0:01:25]}  Ka6 {[%clk 0:00:17]} 49. Qc7 {[%clk 0:01:24]}  Kb5 {[%clk 0:00:17]} 50. b7 {[%clk 0:01:25]}  Ka6 {[%clk 0:00:17]} 51. e5 {[%clk 0:01:24]}  Kb5 {[%clk 0:00:14]} 52. b8=Q+ {[%clk 0:01:24]}  Ka6 {[%clk 0:00:14]} 53. Qca7# {[%clk 0:01:25]} 1-0


[Site "https://www.chess.com"]

[Event "Titled Tuesday Blitz March 14 Late 2023"]
[White "Jenkins, Drake"]
[Black "Golubev, Mikhail"]
[WhiteFideId "2022397"]
[BlackFideId "14100983"]
[WhiteElo "2247"]
[BlackElo "2374"]
[Result "0-1"]
[Round "02"]
[TimeControl "180+2"]
[Date "2023.03.14"]
[WhiteClock "0:00:39"]
[BlackClock "0:00:39"]

1. Nf3 {[%clk 0:02:18]}  d6 {[%clk 0:02:59]} 2. g3 {[%clk 0:02:18]}  g6 {[%clk 0:02:57]} 3. c4 {[%clk 0:02:17]}  Bg7 {[%clk 0:02:57]} 4. Bg2 {[%clk 0:02:17]}  e5 {[%clk 0:02:54]} 5. Nc3 {[%clk 0:02:17]}  Nc6 {[%clk 0:02:54]} 6. O-O {[%clk 0:02:17]}  f5 {[%clk 0:02:54]} 7. d3 {[%clk 0:02:16]}  h6 {[%clk 0:02:52]} 8. a3 {[%clk 0:02:15]}  a5 {[%clk 0:02:46]} 9. Rb1 {[%clk 0:02:12]}  g5 {[%clk 0:02:46]} 10. Qc2 {[%clk 0:02:11]}  Nf6 {[%clk 0:02:37]} 11. b4 {[%clk 0:02:10]}  axb4 {[%clk 0:02:36]} 12. axb4 {[%clk 0:02:11]}  g4 {[%clk 0:02:29]} 13. Nd2 {[%clk 0:02:09]}  Nd4 {[%clk 0:02:27]} 14. Qd1 {[%clk 0:02:07]}  O-O {[%clk 0:02:09]} 15. e3 {[%clk 0:02:07]}  Ne6 {[%clk 0:02:09]} 16. Bb2 {[%clk 0:02:00]}  h5 {[%clk 0:02:03]} 17. Ra1 {[%clk 0:02:00]}  Rb8 {[%clk 0:01:53]} 18. Nd5 {[%clk 0:01:53]}  h4 {[%clk 0:01:32]} 19. f4 {[%clk 0:01:39]}  Nh5 {[%clk 0:01:19]} 20. Qe1 {[%clk 0:01:22]}  c6 {[%clk 0:01:17]} 21. Nc3 {[%clk 0:01:17]}  hxg3 {[%clk 0:01:11]} 22. hxg3 {[%clk 0:01:17]}  exf4 {[%clk 0:01:10]} 23. exf4 {[%clk 0:01:06]}  Bd4+ {[%clk 0:01:01]} 24. Kh1 {[%clk 0:01:05]}  Rf7 {[%clk 0:00:46]} 25. Nd1 {[%clk 0:01:04]}  Nxg3+ {[%clk 0:00:42]} 26. Qxg3 {[%clk 0:00:58]}  Rh7+ {[%clk 0:00:42]} 27. Bh3 {[%clk 0:00:57]}  Rxh3+ {[%clk 0:00:42]} 28. Qxh3 {[%clk 0:00:56]}  gxh3 {[%clk 0:00:42]} 29. Bxd4 {[%clk 0:00:47]}  Nxd4 {[%clk 0:00:43]} 30. Rg1+ {[%clk 0:00:40]}  Kf7 {[%clk 0:00:42]} 31. Nf2 {[%clk 0:00:39]}  Qh4 {[%clk 0:00:39]} 0-1


[Site "https://www.chess.com"]

[Event "Titled Tuesday Blitz March 14 Late 2023"]
[White "TimGrutter03"]
[Black "Kohler, Aran"]
[BlackFideId "1002856"]
[WhiteElo "2492"]
[BlackElo "2237"]
[Result "1-0"]
[Round "02"]
[TimeControl "180+2"]
[Date "2023.03.14"]
[WhiteClock "0:02:11"]
[BlackClock "0:01:32"]

1. e4 {[%clk 0:03:00]}  c6 {[%clk 0:02:57]} 2. Nf3 {[%clk 0:03:00]}  d5 {[%clk 0:02:57]} 3. d3 {[%clk 0:03:00]}  dxe4 {[%clk 0:02:55]} 4. dxe4 {[%clk 0:03:01]}  Qxd1+ {[%clk 0:02:54]} 5. Kxd1 {[%clk 0:03:02]}  Bg4 {[%clk 0:02:52]} 6. Be2 {[%clk 0:03:02]}  Nd7 {[%clk 0:02:52]} 7. Nfd2 {[%clk 0:03:02]}  Bxe2+ {[%clk 0:02:51]} 8. Kxe2 {[%clk 0:03:03]}  O-O-O {[%clk 0:02:50]} 9. Nc4 {[%clk 0:03:00]}  e6 {[%clk 0:02:27]} 10. a4 {[%clk 0:02:41]}  f6 {[%clk 0:02:20]} 11. Nc3 {[%clk 0:02:39]}  Nb6 {[%clk 0:02:11]} 12. Nxb6+ {[%clk 0:02:33]}  axb6 {[%clk 0:02:10]} 13. Be3 {[%clk 0:02:33]}  Bc5 {[%clk 0:02:06]} 14. Bxc5 {[%clk 0:02:32]}  bxc5 {[%clk 0:02:06]} 15. a5 {[%clk 0:02:33]}  Kc7 {[%clk 0:02:05]} 16. Na4 {[%clk 0:02:32]}  c4 {[%clk 0:01:55]} 17. Nc5 {[%clk 0:02:25]}  Re8 {[%clk 0:01:38]} 18. Rhd1 {[%clk 0:02:22]}  Nh6 {[%clk 0:01:36]} 19. Rd7+ {[%clk 0:02:21]}  Kc8 {[%clk 0:01:37]} 20. a6 {[%clk 0:02:16]}  b6 {[%clk 0:01:33]} 21. a7 {[%clk 0:02:16]}  bxc5 {[%clk 0:01:32]} 22. Rxg7 {[%clk 0:02:11]} 1-0


[Site "https://www.chess.com"]